[Event "Titled Tuesday Blitz March 07 Late 2023"]
[White "Crispin Ferreras, Darvi Abraham"]
[Black "Gerzhoy, Leonid"]
[WhiteFideId "6402771"]
[BlackFideId "2806126"]
[WhiteElo "2106"]
[BlackElo "2601"]
[Result "0-1"]
[Round "06"]
[TimeControl "180+2"]
[Date "2023.03.07"]
[WhiteClock "0:01:30"]
[BlackClock "0:01:41"]

1. e4 {[%clk 0:03:00]}  d6 {[%clk 0:02:59]} 2. Nc3 {[%clk 0:02:59]}  Nf6 {[%clk 0:02:59]} 3. d4 {[%clk 0:02:58]}  e5 {[%clk 0:02:58]} 4. Nge2 {[%clk 0:02:57]}  Be7 {[%clk 0:02:55]} 5. g3 {[%clk 0:02:57]}  O-O {[%clk 0:02:54]} 6. Bg2 {[%clk 0:02:57]}  a6 {[%clk 0:02:54]} 7. O-O {[%clk 0:02:57]}  b5 {[%clk 0:02:54]} 8. a3 {[%clk 0:02:56]}  Bb7 {[%clk 0:02:53]} 9. h3 {[%clk 0:02:53]}  Nbd7 {[%clk 0:02:53]} 10. Be3 {[%clk 0:02:53]}  Re8 {[%clk 0:02:52]} 11. d5 {[%clk 0:02:52]}  c6 {[%clk 0:02:51]} 12. dxc6 {[%clk 0:02:51]}  Bxc6 {[%clk 0:02:51]} 13. Qd2 {[%clk 0:02:51]}  Nc5 {[%clk 0:02:50]} 14. f3 {[%clk 0:02:50]}  d5 {[%clk 0:02:31]} 15. exd5 {[%clk 0:02:49]}  Nxd5 {[%clk 0:02:30]} 16. Nxd5 {[%clk 0:02:49]}  Qxd5 {[%clk 0:02:30]} 17. Rad1 {[%clk 0:02:47]}  Rad8 {[%clk 0:02:23]} 18. Qxd5 {[%clk 0:02:44]}  Bxd5 {[%clk 0:02:21]} 19. Nc3 {[%clk 0:02:44]}  Bc6 {[%clk 0:02:19]} 20. Rxd8 {[%clk 0:02:44]}  Rxd8 {[%clk 0:02:19]} 21. Rd1 {[%clk 0:02:44]}  Rxd1+ {[%clk 0:02:16]} 22. Nxd1 {[%clk 0:02:44]}  f5 {[%clk 0:02:14]} 23. Kf2 {[%clk 0:02:39]}  Kf7 {[%clk 0:02:13]} 24. Nc3 {[%clk 0:02:38]}  Ke6 {[%clk 0:02:12]} 25. Ke2 {[%clk 0:02:21]}  g5 {[%clk 0:02:09]} 26. Bf1 {[%clk 0:02:11]}  f4 {[%clk 0:02:06]} 27. Bf2 {[%clk 0:02:10]}  e4 {[%clk 0:02:01]} 28. fxe4 {[%clk 0:02:09]}  Nxe4 {[%clk 0:02:01]} 29. Nxe4 {[%clk 0:02:08]}  Bxe4 {[%clk 0:02:01]} 30. gxf4 {[%clk 0:02:08]}  gxf4 {[%clk 0:02:00]} 31. Kd2 {[%clk 0:02:06]}  f3 {[%clk 0:01:59]} 32. Bd3 {[%clk 0:02:00]}  Kf5 {[%clk 0:01:57]} 33. c4 {[%clk 0:01:56]}  Bxd3 {[%clk 0:01:53]} 34. Kxd3 {[%clk 0:01:56]}  bxc4+ {[%clk 0:01:53]} 35. Kxc4 {[%clk 0:01:56]}  Ke4 {[%clk 0:01:53]} 36. b4 {[%clk 0:01:55]}  Bg5 {[%clk 0:01:51]} 37. a4 {[%clk 0:01:46]}  Be3 {[%clk 0:01:50]} 38. Be1 {[%clk 0:01:46]}  f2 {[%clk 0:01:50]} 39. Bxf2 {[%clk 0:01:46]}  Bxf2 {[%clk 0:01:50]} 40. b5 {[%clk 0:01:45]}  axb5+ {[%clk 0:01:49]} 41. axb5 {[%clk 0:01:42]}  h5 {[%clk 0:01:48]} 42. Kc3 {[%clk 0:01:35]}  h4 {[%clk 0:01:47]} 43. Kd2 {[%clk 0:01:35]}  Kf3 {[%clk 0:01:47]} 44. Kd3 {[%clk 0:01:31]}  Kg3 {[%clk 0:01:43]} 45. Ke2 {[%clk 0:01:31]}  Bb6 {[%clk 0:01:42]} 46. Kf1 {[%clk 0:01:30]}  Kxh3 {[%clk 0:01:41]} 0-1


[Site "https://www.chess.com"]

[Event "Titled Tuesday Blitz March 07 Late 2023"]
[White "Melikyan, Gnel"]
[Black "Bach, Matthias"]
[WhiteFideId "54109990"]
[BlackFideId "4603168"]
[WhiteElo "2138"]
[BlackElo "2165"]
[Result "0-1"]
[Round "06"]
[TimeControl "180+2"]
[Date "2023.03.07"]
[WhiteClock "0:00:02"]
[BlackClock "0:00:25"]

1. b4 {[%clk 0:02:46]}  e5 {[%clk 0:02:57]} 2. Bb2 {[%clk 0:02:45]}  Bxb4 {[%clk 0:02:57]} 3. Bxe5 {[%clk 0:02:45]}  Nf6 {[%clk 0:02:56]} 4. Nf3 {[%clk 0:02:44]}  d5 {[%clk 0:02:55]} 5. e3 {[%clk 0:02:44]}  c5 {[%clk 0:02:55]} 6. c4 {[%clk 0:02:43]}  Nc6 {[%clk 0:02:53]} 7. Bc3 {[%clk 0:02:40]}  d4 {[%clk 0:02:51]} 8. Bxb4 {[%clk 0:02:39]}  cxb4 {[%clk 0:02:50]} 9. a3 {[%clk 0:02:33]}  bxa3 {[%clk 0:02:49]} 10. Nxa3 {[%clk 0:02:31]}  O-O {[%clk 0:02:47]} 11. Nb5 {[%clk 0:02:26]}  Bg4 {[%clk 0:02:46]} 12. h3 {[%clk 0:02:22]}  Bxf3 {[%clk 0:02:41]} 13. Qxf3 {[%clk 0:02:21]}  a6 {[%clk 0:02:41]} 14. Na3 {[%clk 0:02:15]}  d3 {[%clk 0:02:37]} 15. g4 {[%clk 0:02:08]}  Re8 {[%clk 0:02:33]} 16. Bg2 {[%clk 0:02:07]}  Ne4 {[%clk 0:02:33]} 17. Nb1 {[%clk 0:01:59]}  Qb6 {[%clk 0:02:16]} 18. O-O {[%clk 0:01:00]}  Qb2 {[%clk 0:02:15]} 19. Ra4 {[%clk 0:01:00]}  Nxd2 {[%clk 0:02:12]} 20. Nxd2 {[%clk 0:00:59]}  Qxd2 {[%clk 0:02:12]} 21. Rd1 {[%clk 0:00:58]}  Qc2 {[%clk 0:02:06]} 22. Ra3 {[%clk 0:00:56]}  Rad8 {[%clk 0:01:54]} 23. Raa1 {[%clk 0:00:45]}  d2 {[%clk 0:01:46]} 24. Rab1 {[%clk 0:00:41]}  Ne5 {[%clk 0:01:28]} 25. Qxb7 {[%clk 0:00:39]}  Nxc4 {[%clk 0:01:21]} 26. Bd5 {[%clk 0:00:25]}  Ne5 {[%clk 0:01:10]} 27. Bb3 {[%clk 0:00:18]}  Qc3 {[%clk 0:01:05]} 28. Qxa6 {[%clk 0:00:16]}  Nf3+ {[%clk 0:00:57]} 29. Kf1 {[%clk 0:00:16]}  Qe5 {[%clk 0:00:47]} 30. Qb7 {[%clk 0:00:13]}  Qf6 {[%clk 0:00:45]} 31. Ke2 {[%clk 0:00:09]}  Ne5 {[%clk 0:00:43]} 32. Ba2 {[%clk 0:00:06]}  h5 {[%clk 0:00:39]} 33. Rb6 {[%clk 0:00:05]}  Qh4 {[%clk 0:00:36]} 34. f4 {[%clk 0:00:03]}  Qxh3 {[%clk 0:00:34]} 35. fxe5 {[%clk 0:00:02]}  Qxg4+ {[%clk 0:00:34]} 36. Qf3 {[%clk 0:00:01]}  Qc4+ {[%clk 0:00:31]} 37. Kf2 {[%clk 0:00:01]}  Qxa2 {[%clk 0:00:30]} 38. Rc6 {[%clk 0:00:02]}  Qd5 {[%clk 0:00:28]} 39. Rc7 {[%clk 0:00:02]}  Qxf3+ {[%clk 0:00:27]} 40. Kxf3 {[%clk 0:00:03]}  Rxe5 {[%clk 0:00:27]} 41. Ke2 {[%clk 0:00:02]}  Rde8 {[%clk 0:00:26]} 42. Rxd2 {[%clk 0:00:02]}  Rxe3+ {[%clk 0:00:26]} 43. Kf2 {[%clk 0:00:02]}  R3e7 {[%clk 0:00:26]} 44. Rd8 {[%clk 0:00:02]}  Rxd8 {[%clk 0:00:24]} 45. Rxe7 {[%clk 0:00:01]}  g6 {[%clk 0:00:24]} 46. Kg3 {[%clk 0:00:02]}  Kg7 {[%clk 0:00:25]} 47. Rd7 {[%clk 0:00:02]}  Rxd7 {[%clk 0:00:25]} 0-1


[Site "https://www.chess.com"]

[Event "Titled Tuesday Blitz March 07 Late 2023"]
[White "Boyer, Mahel"]
[Black "Ricaurte Lopez, Juan Carlos"]
[WhiteFideId "45102422"]
[BlackFideId "3600327"]
[WhiteElo "2439"]
[BlackElo "2209"]
[Result "1-0"]
[Round "06"]
[TimeControl "180+2"]
[Date "2023.03.07"]
[WhiteClock "0:02:01"]
[BlackClock "0:00:08"]

1. d4 {[%clk 0:02:53]}  e6 {[%clk 0:02:58]} 2. Nf3 {[%clk 0:02:54]}  d5 {[%clk 0:02:57]} 3. g3 {[%clk 0:02:54]}  c6 {[%clk 0:02:56]} 4. Bg2 {[%clk 0:02:55]}  f5 {[%clk 0:02:57]} 5. O-O {[%clk 0:02:56]}  Nf6 {[%clk 0:02:56]} 6. b3 {[%clk 0:02:54]}  Bd6 {[%clk 0:02:54]} 7. Ba3 {[%clk 0:02:55]}  O-O {[%clk 0:02:52]} 8. c4 {[%clk 0:02:54]}  a5 {[%clk 0:02:49]} 9. Qc1 {[%clk 0:02:53]}  Na6 {[%clk 0:02:47]} 10. Bxd6 {[%clk 0:02:52]}  Qxd6 {[%clk 0:02:46]} 11. Nc3 {[%clk 0:02:53]}  Bd7 {[%clk 0:02:41]} 12. Qf4 {[%clk 0:02:52]}  Qxf4 {[%clk 0:02:33]} 13. gxf4 {[%clk 0:02:53]}  h6 {[%clk 0:02:16]} 14. Ne5 {[%clk 0:02:53]}  Be8 {[%clk 0:02:15]} 15. Rac1 {[%clk 0:02:53]}  Bh5 {[%clk 0:02:13]} 16. Rfe1 {[%clk 0:02:40]}  Rad8 {[%clk 0:02:01]} 17. e3 {[%clk 0:02:39]}  Ng4 {[%clk 0:01:58]} 18. Nd3 {[%clk 0:02:34]}  Nb4 {[%clk 0:01:56]} 19. Nc5 {[%clk 0:02:35]}  Rf7 {[%clk 0:01:21]} 20. a3 {[%clk 0:02:22]}  b6 {[%clk 0:00:41]} 21. Nxe6 {[%clk 0:02:09]}  Rd6 {[%clk 0:00:41]} 22. axb4 {[%clk 0:02:08]}  axb4 {[%clk 0:00:35]} 23. Nxd5 {[%clk 0:02:08]}  Rxe6 {[%clk 0:00:30]} 24. Nxb4 {[%clk 0:02:06]}  Rg6 {[%clk 0:00:08]} 25. Nxc6 {[%clk 0:02:01]} 1-0


[Site "https://www.chess.com"]

[Event "Titled Tuesday Blitz March 07 Late 2023"]
[White "Dudzinski, Pawel"]
[Black "Golubka, Petro"]
[WhiteFideId "1117890"]
[BlackFideId "14114224"]
[WhiteElo "2099"]
[BlackElo "2391"]
[Result "1/2-1/2"]
[Round "06"]
[TimeControl "180+2"]
[Date "2023.03.07"]
[WhiteClock "0:00:11"]
[BlackClock "0:01:40"]

1. e4 {[%clk 0:02:58]}  c5 {[%clk 0:02:25]} 2. c4 {[%clk 0:02:54]}  e5 {[%clk 0:02:24]} 3. Nc3 {[%clk 0:02:54]}  Nc6 {[%clk 0:02:25]} 4. g3 {[%clk 0:02:54]}  d6 {[%clk 0:02:26]} 5. Bg2 {[%clk 0:02:54]}  Be6 {[%clk 0:02:27]} 6. d3 {[%clk 0:02:53]}  Be7 {[%clk 0:02:27]} 7. f4 {[%clk 0:02:54]}  h5 {[%clk 0:02:27]} 8. f5 {[%clk 0:02:53]}  Bd7 {[%clk 0:02:27]} 9. h4 {[%clk 0:02:44]}  Nf6 {[%clk 0:02:26]} 10. Nd5 {[%clk 0:02:44]}  Nxd5 {[%clk 0:02:25]} 11. cxd5 {[%clk 0:02:40]}  Nd4 {[%clk 0:02:26]} 12. Nf3 {[%clk 0:02:36]}  Qa5+ {[%clk 0:02:20]} 13. Bd2 {[%clk 0:02:35]}  Qb5 {[%clk 0:02:21]} 14. Nxd4 {[%clk 0:02:32]}  exd4 {[%clk 0:02:21]} 15. Qb3 {[%clk 0:02:29]}  a5 {[%clk 0:02:13]} 16. Qxb5 {[%clk 0:02:28]}  Bxb5 {[%clk 0:02:14]} 17. Bf1 {[%clk 0:02:28]}  a4 {[%clk 0:02:15]} 18. a3 {[%clk 0:02:26]}  Bf6 {[%clk 0:02:14]} 19. Be2 {[%clk 0:02:23]}  Kd7 {[%clk 0:02:14]} 20. Bg5 {[%clk 0:02:13]}  Be5 {[%clk 0:02:10]} 21. Bf4 {[%clk 0:02:13]}  Bf6 {[%clk 0:02:09]} 22. Bg5 {[%clk 0:02:13]}  Ke7 {[%clk 0:02:10]} 23. Kd2 {[%clk 0:02:10]}  Bd7 {[%clk 0:02:08]} 24. g4 {[%clk 0:02:04]}  hxg4 {[%clk 0:02:06]} 25. Bxg4 {[%clk 0:02:05]}  b5 {[%clk 0:02:06]} 26. Be2 {[%clk 0:01:35]}  Rab8 {[%clk 0:02:02]} 27. Kc2 {[%clk 0:01:12]}  b4 {[%clk 0:01:59]} 28. axb4 {[%clk 0:00:47]}  cxb4 {[%clk 0:02:00]} 29. Kd2 {[%clk 0:00:44]}  b3 {[%clk 0:01:57]} 30. Rac1 {[%clk 0:00:38]}  Rbc8 {[%clk 0:01:54]} 31. Rxc8 {[%clk 0:00:34]}  Rxc8 {[%clk 0:01:55]} 32. Rc1 {[%clk 0:00:33]}  Bxg5+ {[%clk 0:01:47]} 33. hxg5 {[%clk 0:00:33]}  Rxc1 {[%clk 0:01:38]} 34. Kxc1 {[%clk 0:00:33]}  f6 {[%clk 0:01:39]} 35. g6 {[%clk 0:00:31]}  Kd8 {[%clk 0:01:37]} 36. Kb1 {[%clk 0:00:19]}  Kc7 {[%clk 0:01:38]} 37. Bf1 {[%clk 0:00:17]}  Kb6 {[%clk 0:01:38]} 38. Be2 {[%clk 0:00:15]}  Kc5 {[%clk 0:01:38]} 39. Bg4 {[%clk 0:00:13]}  Kb4 {[%clk 0:01:38]} 40. Be2 {[%clk 0:00:12]}  a3 {[%clk 0:01:38]} 41. Bf1 {[%clk 0:00:11]}  Bb5 {[%clk 0:01:37]} 42. Be2 {[%clk 0:00:10]}  Ba4 {[%clk 0:01:38]} 43. Bf1 {[%clk 0:00:10]}  Be8 {[%clk 0:01:38]} 44. Be2 {[%clk 0:00:10]}  Bd7 {[%clk 0:01:38]} 45. Bg4 {[%clk 0:00:09]}  a2+ {[%clk 0:01:37]} 46. Ka1 {[%clk 0:00:09]}  Bb5 {[%clk 0:01:36]} 47. Be2 {[%clk 0:00:09]}  Kc5 {[%clk 0:01:36]} 48. Bf1 {[%clk 0:00:08]}  Kb6 {[%clk 0:01:36]} 49. Be2 {[%clk 0:00:08]}  Ka5 {[%clk 0:01:36]} 50. Bf1 {[%clk 0:00:09]}  Ba6 {[%clk 0:01:36]} 51. Be2 {[%clk 0:00:09]}  Bb7 {[%clk 0:01:36]} 52. Bf3 {[%clk 0:00:08]}  Kb4 {[%clk 0:01:36]} 53. Bg2 {[%clk 0:00:08]}  Bc8 {[%clk 0:01:36]} 54. Bh3 {[%clk 0:00:08]}  Ba6 {[%clk 0:01:35]} 55. Bf1 {[%clk 0:00:08]}  Bc8 {[%clk 0:01:36]} 56. Bh3 {[%clk 0:00:08]}  Bd7 {[%clk 0:01:36]} 57. Bg4 {[%clk 0:00:08]}  Kc5 {[%clk 0:01:36]} 58. Bh3 {[%clk 0:00:08]}  Be8 {[%clk 0:01:34]} 59. Bg4 {[%clk 0:00:08]}  Ba4 {[%clk 0:01:34]} 60. Bh3 {[%clk 0:00:07]}  Bb5 {[%clk 0:01:34]} 61. Bf1 {[%clk 0:00:07]}  Ba6 {[%clk 0:01:35]} 62. Be2 {[%clk 0:00:07]}  Kb4 {[%clk 0:01:35]} 63. Bf1 {[%clk 0:00:07]}  Kc5 {[%clk 0:01:35]} 64. Be2 {[%clk 0:00:07]}  Bc8 {[%clk 0:01:35]} 65. Bg4 {[%clk 0:00:07]}  Kb6 {[%clk 0:01:35]} 66. Bh3 {[%clk 0:00:07]}  Bd7 {[%clk 0:01:34]} 67. Bg4 {[%clk 0:00:07]}  Kc7 {[%clk 0:01:35]} 68. Bh3 {[%clk 0:00:07]}  Kd8 {[%clk 0:01:35]} 69. Bg4 {[%clk 0:00:07]}  Ke7 {[%clk 0:01:34]} 70. Bh3 {[%clk 0:00:08]}  Kf8 {[%clk 0:01:35]} 71. Bg4 {[%clk 0:00:08]}  Kg8 {[%clk 0:01:35]} 72. Bh3 {[%clk 0:00:09]}  Kh8 {[%clk 0:01:36]} 73. Bg4 {[%clk 0:00:09]}  Kg8 {[%clk 0:01:36]} 74. Bd1 {[%clk 0:00:08]}  Ba4 {[%clk 0:01:36]} 75. Bg4 {[%clk 0:00:08]}  Kf8 {[%clk 0:01:36]} 76. Bh3 {[%clk 0:00:08]}  Ke7 {[%clk 0:01:37]} 77. Bg4 {[%clk 0:00:09]}  Kd8 {[%clk 0:01:37]} 78. Bf3 {[%clk 0:00:09]}  Kc8 {[%clk 0:01:37]} 79. Be2 {[%clk 0:00:09]}  Kc7 {[%clk 0:01:38]} 80. Bf3 {[%clk 0:00:10]}  Kb6 {[%clk 0:01:38]} 81. Be2 {[%clk 0:00:11]}  Kc5 {[%clk 0:01:38]} 82. Bf3 {[%clk 0:00:11]}  Kb4 {[%clk 0:01:39]} 83. Be2 {[%clk 0:00:11]}  Bb5 {[%clk 0:01:39]} 84. Bf1 {[%clk 0:00:11]}  Ba6 {[%clk 0:01:39]} 85. Be2 {[%clk 0:00:11]}  Bc8 {[%clk 0:01:40]} 86. Bg4 {[%clk 0:00:11]}  Bd7 {[%clk 0:01:40]} 87. Bh3 {[%clk 0:00:11]} 1/2-1/2


[Site "https://www.chess.com"]

[Event "Titled Tuesday Blitz March 07 Late 2023"]
[White "ArchibaldCerveza29"]
[Black "Karttunen, Mika"]
[BlackFideId "502081"]
[WhiteElo "2474"]
[BlackElo "2396"]
[Result "1-0"]
[Round "06"]
[TimeControl "180+2"]
[Date "2023.03.07"]
[WhiteClock "0:00:07"]
[BlackClock "0:00:05"]

1. e4 {[%clk 0:03:00]}  c6 {[%clk 0:02:59]} 2. d4 {[%clk 0:03:00]}  d5 {[%clk 0:02:59]} 3. exd5 {[%clk 0:03:01]}  cxd5 {[%clk 0:02:59]} 4. c4 {[%clk 0:03:02]}  Nf6 {[%clk 0:02:56]} 5. Nc3 {[%clk 0:03:03]}  e6 {[%clk 0:02:56]} 6. Nf3 {[%clk 0:03:02]}  Bb4 {[%clk 0:02:54]} 7. Bd3 {[%clk 0:02:55]}  Nc6 {[%clk 0:02:45]} 8. O-O {[%clk 0:02:55]}  dxc4 {[%clk 0:02:36]} 9. Bxc4 {[%clk 0:02:55]}  O-O {[%clk 0:02:32]} 10. a3 {[%clk 0:02:55]}  Be7 {[%clk 0:02:31]} 11. Re1 {[%clk 0:02:55]}  b6 {[%clk 0:01:05]} 12. Bd3 {[%clk 0:02:54]}  Bb7 {[%clk 0:01:04]} 13. Bc2 {[%clk 0:02:54]}  Rc8 {[%clk 0:01:00]} 14. Qd3 {[%clk 0:02:51]}  Na5 {[%clk 0:00:54]} 15. Ne5 {[%clk 0:02:48]}  Re8 {[%clk 0:00:36]} 16. Bg5 {[%clk 0:02:30]}  g6 {[%clk 0:00:35]} 17. Rad1 {[%clk 0:02:26]}  Bd5 {[%clk 0:00:24]} 18. h4 {[%clk 0:02:03]}  Nc4 {[%clk 0:00:23]} 19. Nxc4 {[%clk 0:01:50]}  Bxc4 {[%clk 0:00:23]} 20. Qh3 {[%clk 0:01:51]}  Bd5 {[%clk 0:00:23]} 21. Bb1 {[%clk 0:01:46]}  Nh5 {[%clk 0:00:18]} 22. Bxe7 {[%clk 0:01:33]}  Rxe7 {[%clk 0:00:17]} 23. Re5 {[%clk 0:01:28]}  Rd7 {[%clk 0:00:17]} 24. Rde1 {[%clk 0:01:20]}  a6 {[%clk 0:00:09]} 25. Qg4 {[%clk 0:01:13]}  Nf6 {[%clk 0:00:09]} 26. Qg5 {[%clk 0:01:11]}  Ne8 {[%clk 0:00:09]} 27. Qg3 {[%clk 0:01:04]}  Ng7 {[%clk 0:00:09]} 28. h5 {[%clk 0:01:01]}  b5 {[%clk 0:00:09]} 29. hxg6 {[%clk 0:00:45]}  hxg6 {[%clk 0:00:09]} 30. Bd3 {[%clk 0:00:24]}  Bb7 {[%clk 0:00:09]} 31. Ne2 {[%clk 0:00:23]}  Qf6 {[%clk 0:00:06]} 32. Bb1 {[%clk 0:00:21]}  Rdc7 {[%clk 0:00:05]} 33. Re3 {[%clk 0:00:20]}  Nf5 {[%clk 0:00:05]} 34. Qf4 {[%clk 0:00:20]}  Qg7 {[%clk 0:00:04]} 35. Rh3 {[%clk 0:00:20]}  Rd7 {[%clk 0:00:03]} 36. Bxf5 {[%clk 0:00:18]}  exf5 {[%clk 0:00:03]} 37. Rd1 {[%clk 0:00:16]}  Re8 {[%clk 0:00:03]} 38. Re3 {[%clk 0:00:15]}  Rde7 {[%clk 0:00:03]} 39. Rdd3 {[%clk 0:00:14]}  Rxe3 {[%clk 0:00:03]} 40. Rxe3 {[%clk 0:00:15]}  Rxe3 {[%clk 0:00:03]} 41. Qxe3 {[%clk 0:00:16]}  Qf8 {[%clk 0:00:03]} 42. Nf4 {[%clk 0:00:16]}  Qd8 {[%clk 0:00:03]} 43. d5 {[%clk 0:00:16]}  Qd6 {[%clk 0:00:03]} 44. Qd4 {[%clk 0:00:15]}  g5 {[%clk 0:00:03]} 45. Nh5 {[%clk 0:00:15]}  Kf8 {[%clk 0:00:02]} 46. Qg7+ {[%clk 0:00:09]}  Ke8 {[%clk 0:00:03]} 47. Nf6+ {[%clk 0:00:08]}  Ke7 {[%clk 0:00:03]} 48. Ng8+ {[%clk 0:00:08]}  Kd8 {[%clk 0:00:03]} 49. Qxg5+ {[%clk 0:00:08]}  Kc7 {[%clk 0:00:03]} 50. Qxf5 {[%clk 0:00:07]}  Bxd5 {[%clk 0:00:04]} 51. Nf6 {[%clk 0:00:06]}  Be6 {[%clk 0:00:04]} 52. Ne8+ {[%clk 0:00:06]}  Kd7 {[%clk 0:00:04]} 53. Nxd6 {[%clk 0:00:07]}  Kxd6 {[%clk 0:00:05]} 54. Qf6 {[%clk 0:00:07]} 1-0


[Site "https://www.chess.com"]

[Event "Titled Tuesday Blitz March 07 Late 2023"]
[White "Yeritsyan, Hayk"]
[Black "Ozates, Tuna"]
[WhiteFideId "13307320"]
[BlackFideId "6354521"]
[WhiteElo "2449"]
[BlackElo "2151"]
[Result "0-1"]
[Round "06"]
[TimeControl "180+2"]
[Date "2023.03.07"]
[WhiteClock "0:00:11"]
[BlackClock "0:00:25"]

1. d4 {[%clk 0:03:00]}  Nf6 {[%clk 0:02:56]} 2. Nf3 {[%clk 0:03:01]}  c5 {[%clk 0:02:56]} 3. e3 {[%clk 0:03:00]}  cxd4 {[%clk 0:02:55]} 4. exd4 {[%clk 0:03:01]}  d5 {[%clk 0:02:55]} 5. Bd3 {[%clk 0:03:01]}  Nc6 {[%clk 0:02:56]} 6. h3 {[%clk 0:03:01]}  e6 {[%clk 0:02:53]} 7. Bf4 {[%clk 0:03:00]}  Bd6 {[%clk 0:02:52]} 8. Bxd6 {[%clk 0:03:00]}  Qxd6 {[%clk 0:02:52]} 9. c3 {[%clk 0:03:00]}  Bd7 {[%clk 0:02:53]} 10. Qe2 {[%clk 0:03:00]}  Rb8 {[%clk 0:02:52]} 11. Nbd2 {[%clk 0:03:00]}  O-O {[%clk 0:02:50]} 12. Ne5 {[%clk 0:03:00]}  a6 {[%clk 0:02:47]} 13. O-O {[%clk 0:02:58]}  b5 {[%clk 0:02:47]} 14. a3 {[%clk 0:02:59]}  Na5 {[%clk 0:02:45]} 15. b4 {[%clk 0:02:59]}  Nc4 {[%clk 0:02:44]} 16. Nb3 {[%clk 0:02:58]}  Rfc8 {[%clk 0:02:41]} 17. Nc5 {[%clk 0:02:57]}  Be8 {[%clk 0:02:41]} 18. f4 {[%clk 0:02:54]}  Nd7 {[%clk 0:02:39]} 19. Bxc4 {[%clk 0:01:53]}  dxc4 {[%clk 0:02:33]} 20. Nexd7 {[%clk 0:01:50]}  Bxd7 {[%clk 0:02:33]} 21. Qe5 {[%clk 0:01:49]}  Rb6 {[%clk 0:02:10]} 22. Rae1 {[%clk 0:01:39]}  Qxe5 {[%clk 0:02:09]} 23. fxe5 {[%clk 0:01:23]}  Bc6 {[%clk 0:02:09]} 24. Ra1 {[%clk 0:01:07]}  Ra8 {[%clk 0:01:39]} 25. a4 {[%clk 0:00:51]}  a5 {[%clk 0:01:39]} 26. axb5 {[%clk 0:00:34]}  Rxb5 {[%clk 0:01:39]} 27. Rfb1 {[%clk 0:00:19]}  axb4 {[%clk 0:01:35]} 28. Rxa8+ {[%clk 0:00:20]}  Bxa8 {[%clk 0:01:35]} 29. Rxb4 {[%clk 0:00:18]}  Rxb4 {[%clk 0:01:33]} 30. cxb4 {[%clk 0:00:19]}  c3 {[%clk 0:01:30]} 31. g3 {[%clk 0:00:17]}  c2 {[%clk 0:01:00]} 32. Nd3 {[%clk 0:00:14]}  Bd5 {[%clk 0:00:59]} 33. Kf2 {[%clk 0:00:11]}  Bc4 {[%clk 0:00:59]} 34. Nc1 {[%clk 0:00:11]}  h5 {[%clk 0:00:56]} 35. h4 {[%clk 0:00:11]}  Kh7 {[%clk 0:00:56]} 36. Ke3 {[%clk 0:00:12]}  Kg6 {[%clk 0:00:57]} 37. Kd2 {[%clk 0:00:11]}  Kf5 {[%clk 0:00:58]} 38. Kc3 {[%clk 0:00:12]}  Bd5 {[%clk 0:00:48]} 39. Kxc2 {[%clk 0:00:07]}  Kg4 {[%clk 0:00:44]} 40. Ne2 {[%clk 0:00:06]}  Kf3 {[%clk 0:00:43]} 41. Kd2 {[%clk 0:00:06]}  Bc4 {[%clk 0:00:41]} 42. Nf4 {[%clk 0:00:06]}  g6 {[%clk 0:00:39]} 43. Nd3 {[%clk 0:00:01]}  Kxg3 {[%clk 0:00:37]} 44. Nb2 {[%clk 0:00:02]}  Bd5 {[%clk 0:00:37]} 45. Nd1 {[%clk 0:00:03]}  Kxh4 {[%clk 0:00:36]} 46. b5 {[%clk 0:00:04]}  Kg3 {[%clk 0:00:35]} 47. b6 {[%clk 0:00:04]}  h4 {[%clk 0:00:34]} 48. Ne3 {[%clk 0:00:04]}  Bb7 {[%clk 0:00:33]} 49. d5 {[%clk 0:00:02]}  exd5 {[%clk 0:00:32]} 50. Kd3 {[%clk 0:00:02]}  h3 {[%clk 0:00:29]} 51. Kd4 {[%clk 0:00:02]}  h2 {[%clk 0:00:20]} 52. Nf1+ {[%clk 0:00:02]}  Kg2 {[%clk 0:00:21]} 53. Nxh2 {[%clk 0:00:03]}  Kxh2 {[%clk 0:00:22]} 54. Kc5 {[%clk 0:00:03]}  Kg3 {[%clk 0:00:21]} 55. Kd6 {[%clk 0:00:03]}  d4 {[%clk 0:00:22]} 56. Kc7 {[%clk 0:00:04]}  Ba6 {[%clk 0:00:22]} 57. e6 {[%clk 0:00:03]}  fxe6 {[%clk 0:00:21]} 58. Kd6 {[%clk 0:00:04]}  d3 {[%clk 0:00:22]} 59. Kxe6 {[%clk 0:00:04]}  d2 {[%clk 0:00:22]} 60. Kf6 {[%clk 0:00:05]}  d1=Q {[%clk 0:00:22]} 61. Kxg6 {[%clk 0:00:06]}  Qd6+ {[%clk 0:00:22]} 62. Kg7 {[%clk 0:00:06]}  Qxb6 {[%clk 0:00:23]} 63. Kg8 {[%clk 0:00:07]}  Qc7 {[%clk 0:00:24]} 64. Kh8 {[%clk 0:00:08]}  Kg4 {[%clk 0:00:23]} 65. Kg8 {[%clk 0:00:09]}  Kg5 {[%clk 0:00:24]} 66. Kh8 {[%clk 0:00:10]}  Kg6 {[%clk 0:00:25]} 67. Kg8 {[%clk 0:00:11]}  Qc8# {[%clk 0:00:25]} 0-1


[Site "https://www.chess.com"]

[Event "Titled Tuesday Blitz March 07 Late 2023"]
[White "Lacey, Patrick"]
[Black "Pinheiro, Iung Alicio de O."]
[WhiteFideId "2032007"]
[BlackFideId "2104350"]
[WhiteElo "2428"]
[BlackElo "2283"]
[Result "0-1"]
[Round "06"]
[TimeControl "180+2"]
[Date "2023.03.07"]
[WhiteClock "0:00:01"]
[BlackClock "0:00:03"]

1. Nf3 {[%clk 0:03:00]}  d5 {[%clk 0:02:57]} 2. c4 {[%clk 0:03:00]}  e6 {[%clk 0:02:55]} 3. d4 {[%clk 0:02:59]}  h6 {[%clk 0:02:54]} 4. Nc3 {[%clk 0:02:50]}  Nf6 {[%clk 0:02:52]} 5. Bf4 {[%clk 0:02:41]}  Bd6 {[%clk 0:02:51]} 6. Ne5 {[%clk 0:02:37]}  O-O {[%clk 0:02:11]} 7. e3 {[%clk 0:02:37]}  c5 {[%clk 0:02:09]} 8. Be2 {[%clk 0:02:20]}  cxd4 {[%clk 0:01:44]} 9. exd4 {[%clk 0:02:21]}  dxc4 {[%clk 0:01:42]} 10. Bf3 {[%clk 0:02:16]}  Nc6 {[%clk 0:01:36]} 11. O-O {[%clk 0:02:10]}  a6 {[%clk 0:00:34]} 12. Re1 {[%clk 0:02:04]}  Nd5 {[%clk 0:00:30]} 13. Nxd5 {[%clk 0:01:58]}  exd5 {[%clk 0:00:30]} 14. Bxd5 {[%clk 0:00:57]}  Nxe5 {[%clk 0:00:28]} 15. dxe5 {[%clk 0:00:55]}  Bb4 {[%clk 0:00:26]} 16. Re3 {[%clk 0:00:42]}  Be6 {[%clk 0:00:25]} 17. Bxe6 {[%clk 0:00:36]}  Qxd1+ {[%clk 0:00:23]} 18. Rxd1 {[%clk 0:00:35]}  fxe6 {[%clk 0:00:24]} 19. Bg3 {[%clk 0:00:33]}  Rad8 {[%clk 0:00:24]} 20. Rb1 {[%clk 0:00:26]}  Rd2 {[%clk 0:00:22]} 21. Kf1 {[%clk 0:00:22]}  Bc5 {[%clk 0:00:22]} 22. Re2 {[%clk 0:00:22]}  Rfd8 {[%clk 0:00:19]} 23. Rc1 {[%clk 0:00:19]}  b5 {[%clk 0:00:18]} 24. Bf4 {[%clk 0:00:15]}  R2d3 {[%clk 0:00:12]} 25. g3 {[%clk 0:00:13]}  R8d5 {[%clk 0:00:11]} 26. h4 {[%clk 0:00:12]}  Kf7 {[%clk 0:00:10]} 27. h5 {[%clk 0:00:12]}  a5 {[%clk 0:00:09]} 28. Kg2 {[%clk 0:00:12]}  a4 {[%clk 0:00:10]} 29. a3 {[%clk 0:00:12]}  Bd4 {[%clk 0:00:09]} 30. Rcc2 {[%clk 0:00:11]}  Rb3 {[%clk 0:00:09]} 31. Re4 {[%clk 0:00:11]}  Rxb2 {[%clk 0:00:07]} 32. Rce2 {[%clk 0:00:07]}  Rxe2 {[%clk 0:00:06]} 33. Rxe2 {[%clk 0:00:07]}  Bc5 {[%clk 0:00:05]} 34. Bc1 {[%clk 0:00:05]}  Rd3 {[%clk 0:00:05]} 35. Re4 {[%clk 0:00:04]}  Bxa3 {[%clk 0:00:04]} 36. Rf4+ {[%clk 0:00:04]}  Ke8 {[%clk 0:00:04]} 37. Be3 {[%clk 0:00:03]}  Bb2 {[%clk 0:00:04]} 38. Rg4 {[%clk 0:00:04]}  Kf7 {[%clk 0:00:04]} 39. Rf4+ {[%clk 0:00:03]}  Ke8 {[%clk 0:00:03]} 40. Re4 {[%clk 0:00:04]}  a3 {[%clk 0:00:03]} 41. Bc5 {[%clk 0:00:01]}  a2 {[%clk 0:00:03]} 0-1


[Site "https://www.chess.com"]